[Event "Titled Tuesday Blitz March 14 Late 2023"]
[White "Papasimakopoulos, Alexandros"]
[Black "slow_jamz"]
[WhiteFideId "4244125"]
[WhiteElo "2359"]
[BlackElo "2465"]
[Result "1/2-1/2"]
[Round "03"]
[TimeControl "180+2"]
[Date "2023.03.14"]
[WhiteClock "0:00:22"]
[BlackClock "0:00:15"]

1. d4 {[%clk 0:02:52]}  d5 {[%clk 0:02:59]} 2. c4 {[%clk 0:02:52]}  c6 {[%clk 0:03:00]} 3. cxd5 {[%clk 0:02:52]}  cxd5 {[%clk 0:03:01]} 4. Bf4 {[%clk 0:02:51]}  Nf6 {[%clk 0:03:01]} 5. Nc3 {[%clk 0:02:51]}  a6 {[%clk 0:03:00]} 6. e3 {[%clk 0:02:51]}  e6 {[%clk 0:03:00]} 7. Bd3 {[%clk 0:02:52]}  Be7 {[%clk 0:02:57]} 8. h3 {[%clk 0:02:51]}  O-O {[%clk 0:02:58]} 9. Nf3 {[%clk 0:02:51]}  b5 {[%clk 0:02:57]} 10. O-O {[%clk 0:02:47]}  Bb7 {[%clk 0:02:58]} 11. a4 {[%clk 0:02:44]}  b4 {[%clk 0:02:54]} 12. Nb1 {[%clk 0:02:44]}  Nbd7 {[%clk 0:02:45]} 13. Nbd2 {[%clk 0:02:44]}  a5 {[%clk 0:02:33]} 14. Nb3 {[%clk 0:02:36]}  Qb6 {[%clk 0:02:32]} 15. Qe2 {[%clk 0:02:34]}  Rfc8 {[%clk 0:02:31]} 16. Bb5 {[%clk 0:02:29]}  Ba6 {[%clk 0:02:09]} 17. Rfc1 {[%clk 0:02:16]}  Rxc1+ {[%clk 0:02:05]} 18. Rxc1 {[%clk 0:02:15]}  Bxb5 {[%clk 0:02:06]} 19. Qxb5 {[%clk 0:02:16]}  Qxb5 {[%clk 0:02:06]} 20. axb5 {[%clk 0:02:17]}  a4 {[%clk 0:02:07]} 21. Nc5 {[%clk 0:02:14]}  a3 {[%clk 0:02:05]} 22. bxa3 {[%clk 0:02:12]}  bxa3 {[%clk 0:02:05]} 23. Na6 {[%clk 0:02:07]}  Nb6 {[%clk 0:01:45]} 24. Bc7 {[%clk 0:02:03]}  Nc4 {[%clk 0:01:43]} 25. Ne5 {[%clk 0:01:58]}  Nxe5 {[%clk 0:01:07]} 26. Bxe5 {[%clk 0:01:46]}  Nd7 {[%clk 0:01:01]} 27. Bc7 {[%clk 0:01:45]}  f6 {[%clk 0:00:56]} 28. Kf1 {[%clk 0:01:45]}  Ra7 {[%clk 0:00:50]} 29. Ke2 {[%clk 0:01:31]}  Rb7 {[%clk 0:00:50]} 30. Rb1 {[%clk 0:01:31]}  Nb6 {[%clk 0:00:23]} 31. Bxb6 {[%clk 0:01:16]}  Rxb6 {[%clk 0:00:24]} 32. Kd3 {[%clk 0:01:12]}  a2 {[%clk 0:00:23]} 33. Ra1 {[%clk 0:01:12]}  Rxb5 {[%clk 0:00:23]} 34. Rxa2 {[%clk 0:01:12]}  Rb3+ {[%clk 0:00:21]} 35. Kc2 {[%clk 0:01:07]}  Rb7 {[%clk 0:00:20]} 36. Kd2 {[%clk 0:01:01]}  Ra7 {[%clk 0:00:19]} 37. Kd3 {[%clk 0:00:59]}  Kf7 {[%clk 0:00:19]} 38. f3 {[%clk 0:00:57]}  h5 {[%clk 0:00:19]} 39. e4 {[%clk 0:00:57]}  Ke8 {[%clk 0:00:17]} 40. exd5 {[%clk 0:00:43]}  exd5 {[%clk 0:00:18]} 41. Nb4 {[%clk 0:00:43]}  Rxa2 {[%clk 0:00:17]} 42. Nxa2 {[%clk 0:00:44]}  Kd7 {[%clk 0:00:17]} 43. Nc3 {[%clk 0:00:45]}  Ke6 {[%clk 0:00:18]} 44. Nb5 {[%clk 0:00:44]}  Bd8 {[%clk 0:00:17]} 45. Ke3 {[%clk 0:00:43]}  Bb6 {[%clk 0:00:17]} 46. Nc3 {[%clk 0:00:39]}  g6 {[%clk 0:00:16]} 47. Ne2 {[%clk 0:00:39]}  g5 {[%clk 0:00:16]} 48. Ng3 {[%clk 0:00:39]}  h4 {[%clk 0:00:16]} 49. Ne2 {[%clk 0:00:40]}  Ba5 {[%clk 0:00:16]} 50. Nc1 {[%clk 0:00:39]}  Bb4 {[%clk 0:00:16]} 51. Nd3 {[%clk 0:00:38]}  Bd6 {[%clk 0:00:17]} 52. Nb2 {[%clk 0:00:35]}  Bf4+ {[%clk 0:00:14]} 53. Kd3 {[%clk 0:00:35]}  Kd6 {[%clk 0:00:15]} 54. Na4 {[%clk 0:00:34]}  Kc6 {[%clk 0:00:15]} 55. Nc5 {[%clk 0:00:34]}  Bd6 {[%clk 0:00:13]} 56. Ne6 {[%clk 0:00:34]}  Kd7 {[%clk 0:00:12]} 57. Ng7 {[%clk 0:00:26]}  Bc7 {[%clk 0:00:11]} 58. Nf5 {[%clk 0:00:25]}  Ke6 {[%clk 0:00:10]} 59. Ne3 {[%clk 0:00:26]}  Ba5 {[%clk 0:00:09]} 60. Kc2 {[%clk 0:00:23]}  Kd6 {[%clk 0:00:07]} 61. Ng4 {[%clk 0:00:22]}  Ke6 {[%clk 0:00:07]} 62. Kb3 {[%clk 0:00:20]}  Bb6 {[%clk 0:00:08]} 63. Kc3 {[%clk 0:00:19]}  Ba7 {[%clk 0:00:08]} 64. Ne3 {[%clk 0:00:19]}  Bb6 {[%clk 0:00:09]} 65. Nc2 {[%clk 0:00:19]}  Kd6 {[%clk 0:00:09]} 66. Kb4 {[%clk 0:00:19]}  Ba7 {[%clk 0:00:08]} 67. Kb5 {[%clk 0:00:20]}  Bb8 {[%clk 0:00:08]} 68. Kb6 {[%clk 0:00:20]}  Bc7+ {[%clk 0:00:08]} 69. Kb7 {[%clk 0:00:20]}  Ba5 {[%clk 0:00:09]} 70. Kc8 {[%clk 0:00:17]}  Bc3 {[%clk 0:00:08]} 71. Kd8 {[%clk 0:00:17]}  Ke6 {[%clk 0:00:09]} 72. Ke8 {[%clk 0:00:17]}  Bb2 {[%clk 0:00:09]} 73. Kf8 {[%clk 0:00:17]}  Bc3 {[%clk 0:00:10]} 74. Kg7 {[%clk 0:00:18]}  Bb2 {[%clk 0:00:10]} 75. Kg6 {[%clk 0:00:18]}  Bc3 {[%clk 0:00:10]} 76. Kh5 {[%clk 0:00:19]}  Bb2 {[%clk 0:00:11]} 77. f4 {[%clk 0:00:19]}  Bc1 {[%clk 0:00:08]} 78. fxg5 {[%clk 0:00:17]}  fxg5 {[%clk 0:00:09]} 79. Kg6 {[%clk 0:00:17]}  Bd2 {[%clk 0:00:08]} 80. Na3 {[%clk 0:00:15]}  Be3 {[%clk 0:00:07]} 81. Nb5 {[%clk 0:00:16]}  Kd7 {[%clk 0:00:05]} 82. Kf5 {[%clk 0:00:15]}  Kc6 {[%clk 0:00:06]} 83. Na3 {[%clk 0:00:13]}  Bf4 {[%clk 0:00:06]} 84. Nc2 {[%clk 0:00:12]}  Kb5 {[%clk 0:00:06]} 85. Ne1 {[%clk 0:00:10]}  Kc4 {[%clk 0:00:06]} 86. Nf3 {[%clk 0:00:11]}  Be3 {[%clk 0:00:06]} 87. Ke5 {[%clk 0:00:11]}  Bf4+ {[%clk 0:00:06]} 88. Ke6 {[%clk 0:00:11]}  Be3 {[%clk 0:00:07]} 89. Kf5 {[%clk 0:00:09]}  Bxd4 {[%clk 0:00:07]} 90. Kxg5 {[%clk 0:00:09]}  Bf2 {[%clk 0:00:07]} 91. Kf4 {[%clk 0:00:08]}  d4 {[%clk 0:00:07]} 92. Ke4 {[%clk 0:00:09]}  d3 {[%clk 0:00:07]} 93. Ne5+ {[%clk 0:00:09]}  Kc3 {[%clk 0:00:07]} 94. Nxd3 {[%clk 0:00:10]}  Bg3 {[%clk 0:00:07]} 95. Nc5 {[%clk 0:00:07]}  Kd2 {[%clk 0:00:07]} 96. Kf3 {[%clk 0:00:07]}  Ke1 {[%clk 0:00:08]} 97. Ne4 {[%clk 0:00:07]}  Be5 {[%clk 0:00:08]} 98. Ng5 {[%clk 0:00:06]}  Bf6 {[%clk 0:00:08]} 99. Ne6 {[%clk 0:00:06]}  Kf1 {[%clk 0:00:08]} 100. Nf4 {[%clk 0:00:06]}  Kg1 {[%clk 0:00:07]} 101. Ne2+ {[%clk 0:00:06]}  Kh2 {[%clk 0:00:07]} 102. Nc1 {[%clk 0:00:07]}  Bg5 {[%clk 0:00:08]} 103. Nd3 {[%clk 0:00:07]}  Bd8 {[%clk 0:00:08]} 104. Ne5 {[%clk 0:00:07]}  Bc7 {[%clk 0:00:08]} 105. Ng4+ {[%clk 0:00:07]}  Kh1 {[%clk 0:00:08]} 106. Nh6 {[%clk 0:00:08]}  Bd8 {[%clk 0:00:08]} 107. Nf5 {[%clk 0:00:09]}  Bf6 {[%clk 0:00:08]} 108. Ne3 {[%clk 0:00:09]}  Bg5 {[%clk 0:00:08]} 109. Nf1 {[%clk 0:00:08]}  Be7 {[%clk 0:00:08]} 110. Nd2 {[%clk 0:00:08]}  Bd8 {[%clk 0:00:08]} 111. Ne4 {[%clk 0:00:08]}  Be7 {[%clk 0:00:09]} 112. g4 {[%clk 0:00:09]}  hxg3 {[%clk 0:00:09]} 113. Kxg3 {[%clk 0:00:09]}  Kg1 {[%clk 0:00:09]} 114. Nd2 {[%clk 0:00:06]}  Bd6+ {[%clk 0:00:07]} 115. Kg4 {[%clk 0:00:06]}  Be7 {[%clk 0:00:08]} 116. Nf3+ {[%clk 0:00:06]}  Kg2 {[%clk 0:00:08]} 117. Nd4 {[%clk 0:00:07]}  Bf6 {[%clk 0:00:07]} 118. Ne2 {[%clk 0:00:06]}  Kf2 {[%clk 0:00:08]} 119. Nf4 {[%clk 0:00:07]}  Bd8 {[%clk 0:00:07]} 120. Nd5 {[%clk 0:00:07]}  Ke2 {[%clk 0:00:06]} 121. Nc3+ {[%clk 0:00:07]}  Kd3 {[%clk 0:00:06]} 122. Nb5 {[%clk 0:00:07]}  Ke4 {[%clk 0:00:05]} 123. Nd6+ {[%clk 0:00:07]}  Kd5 {[%clk 0:00:05]} 124. Nf7 {[%clk 0:00:08]}  Be7 {[%clk 0:00:06]} 125. Ng5 {[%clk 0:00:07]}  Ke5 {[%clk 0:00:07]} 126. h4 {[%clk 0:00:06]}  Kf6 {[%clk 0:00:07]} 127. h5 {[%clk 0:00:06]}  Kg7 {[%clk 0:00:08]} 128. Ne6+ {[%clk 0:00:06]}  Kh7 {[%clk 0:00:08]} 129. Nd4 {[%clk 0:00:06]}  Bf6 {[%clk 0:00:08]} 130. Nf5 {[%clk 0:00:06]}  Bd8 {[%clk 0:00:08]} 131. Kf4 {[%clk 0:00:07]}  Bf6 {[%clk 0:00:09]} 132. Ke4 {[%clk 0:00:07]}  Bh8 {[%clk 0:00:09]} 133. Kd5 {[%clk 0:00:07]}  Bb2 {[%clk 0:00:09]} 134. Ke6 {[%clk 0:00:08]}  Ba1 {[%clk 0:00:09]} 135. Kd5 {[%clk 0:00:07]}  Bb2 {[%clk 0:00:09]} 136. Ke4 {[%clk 0:00:08]}  Ba1 {[%clk 0:00:10]} 137. Kf4 {[%clk 0:00:08]}  Bb2 {[%clk 0:00:11]} 138. Kg4 {[%clk 0:00:09]}  Bc1 {[%clk 0:00:11]} 139. Ne7 {[%clk 0:00:09]}  Kh6 {[%clk 0:00:11]} 140. Nc6 {[%clk 0:00:09]}  Kh7 {[%clk 0:00:11]} 141. Ne5 {[%clk 0:00:09]}  Bd2 {[%clk 0:00:11]} 142. Nd3 {[%clk 0:00:10]}  Bc3 {[%clk 0:00:11]} 143. Nc5 {[%clk 0:00:10]}  Bd4 {[%clk 0:00:11]} 144. Ne4 {[%clk 0:00:11]}  Bb2 {[%clk 0:00:11]} 145. Ng5+ {[%clk 0:00:11]}  Kh8 {[%clk 0:00:11]} 146. Nf7+ {[%clk 0:00:12]}  Kg7 {[%clk 0:00:11]} 147. Nd6 {[%clk 0:00:12]}  Kh7 {[%clk 0:00:11]} 148. Kg5 {[%clk 0:00:12]}  Bc1+ {[%clk 0:00:11]} 149. Kf5 {[%clk 0:00:13]}  Ba3 {[%clk 0:00:11]} 150. Nf7 {[%clk 0:00:12]}  Bc1 {[%clk 0:00:11]} 151. Kg4 {[%clk 0:00:13]}  Bd2 {[%clk 0:00:11]} 152. Ne5 {[%clk 0:00:13]}  Bc1 {[%clk 0:00:12]} 153. Nf3 {[%clk 0:00:14]}  Be3 {[%clk 0:00:12]} 154. Ne5 {[%clk 0:00:13]}  Bc1 {[%clk 0:00:12]} 155. Nd3 {[%clk 0:00:13]}  Bd2 {[%clk 0:00:12]} 156. Nc5 {[%clk 0:00:13]}  Bc1 {[%clk 0:00:12]} 157. Nb3 {[%clk 0:00:14]}  Be3 {[%clk 0:00:12]} 158. Na5 {[%clk 0:00:14]}  Bb6 {[%clk 0:00:12]} 159. Nc4 {[%clk 0:00:15]}  Bd4 {[%clk 0:00:12]} 160. Nd6 {[%clk 0:00:15]}  Bb2 {[%clk 0:00:12]} 161. Ne4 {[%clk 0:00:16]}  Bc1 {[%clk 0:00:12]} 162. Ng5+ {[%clk 0:00:16]}  Bxg5 {[%clk 0:00:11]} 163. Kxg5 {[%clk 0:00:17]}  Kg7 {[%clk 0:00:12]} 164. h6+ {[%clk 0:00:18]}  Kh7 {[%clk 0:00:13]} 165. Kh5 {[%clk 0:00:19]}  Kh8 {[%clk 0:00:14]} 166. Kg6 {[%clk 0:00:20]}  Kg8 {[%clk 0:00:14]} 167. h7+ {[%clk 0:00:21]}  Kh8 {[%clk 0:00:15]} 168. Kh6 {[%clk 0:00:22]} 1/2-1/2


[Site "https://www.chess.com"]

[Event "Titled Tuesday Blitz March 14 Late 2023"]
[White "Kielinkei"]
[Black "Volkov, Maksim"]
[BlackFideId "54123070"]
[WhiteElo "2435"]
[BlackElo "2312"]
[Result "0-1"]
[Round "03"]
[TimeControl "180+2"]
[Date "2023.03.14"]
[WhiteClock "0:00:11"]
[BlackClock "0:00:22"]

1. d4 {[%clk 0:03:00]}  Nf6 {[%clk 0:02:59]} 2. c4 {[%clk 0:02:59]}  e6 {[%clk 0:02:59]} 3. g3 {[%clk 0:02:58]}  d5 {[%clk 0:02:58]} 4. Bg2 {[%clk 0:02:58]}  dxc4 {[%clk 0:02:58]} 5. Nf3 {[%clk 0:02:58]}  a6 {[%clk 0:02:58]} 6. O-O {[%clk 0:02:55]}  Nc6 {[%clk 0:02:58]} 7. Nbd2 {[%clk 0:02:51]}  Nxd4 {[%clk 0:02:56]} 8. Nxc4 {[%clk 0:02:51]}  Nxf3+ {[%clk 0:02:56]} 9. Bxf3 {[%clk 0:02:52]}  Qxd1 {[%clk 0:02:56]} 10. Rxd1 {[%clk 0:02:53]}  Nd5 {[%clk 0:02:56]} 11. e4 {[%clk 0:02:42]}  Nb4 {[%clk 0:02:28]} 12. Bf4 {[%clk 0:02:39]}  Bd7 {[%clk 0:02:22]} 13. Bxc7 {[%clk 0:02:36]}  Rc8 {[%clk 0:02:20]} 14. Nd6+ {[%clk 0:02:29]}  Bxd6 {[%clk 0:02:16]} 15. Bxd6 {[%clk 0:02:30]}  Nc6 {[%clk 0:02:16]} 16. Rac1 {[%clk 0:02:27]}  f6 {[%clk 0:02:15]} 17. e5 {[%clk 0:02:12]}  fxe5 {[%clk 0:02:06]} 18. Be4 {[%clk 0:02:07]}  Kf7 {[%clk 0:02:02]} 19. Kg2 {[%clk 0:01:28]}  Kf6 {[%clk 0:01:54]} 20. Rc5 {[%clk 0:01:16]}  Rhd8 {[%clk 0:01:48]} 21. f4 {[%clk 0:00:52]}  exf4 {[%clk 0:01:46]} 22. gxf4 {[%clk 0:00:53]}  h6 {[%clk 0:01:32]} 23. Kf2 {[%clk 0:00:40]}  Be8 {[%clk 0:01:00]} 24. Ke3 {[%clk 0:00:24]}  Bg6 {[%clk 0:00:55]} 25. Be5+ {[%clk 0:00:19]}  Kf7 {[%clk 0:00:52]} 26. Rxd8 {[%clk 0:00:16]}  Rxd8 {[%clk 0:00:49]} 27. Bxc6 {[%clk 0:00:17]}  bxc6 {[%clk 0:00:24]} 28. Rxc6 {[%clk 0:00:17]}  Rd3+ {[%clk 0:00:24]} 29. Ke2 {[%clk 0:00:18]}  Rh3 {[%clk 0:00:22]} 30. Rxa6 {[%clk 0:00:17]}  Bd3+ {[%clk 0:00:22]} 31. Kf2 {[%clk 0:00:15]}  Bxa6 {[%clk 0:00:23]} 32. f5 {[%clk 0:00:13]}  exf5 {[%clk 0:00:23]} 33. a4 {[%clk 0:00:12]}  Rb3 {[%clk 0:00:22]} 34. Bc3 {[%clk 0:00:11]}  g5 {[%clk 0:00:22]} 35. a5 {[%clk 0:00:11]}  f4 {[%clk 0:00:22]} 0-1


[Site "https://www.chess.com"]

[Event "Titled Tuesday Blitz March 14 Late 2023"]
[White "Becham, Khalid"]
[Black "Crevatin, Leo"]
[WhiteFideId "9000275"]
[BlackFideId "1726307"]
[WhiteElo "2081"]
[BlackElo "2190"]
[Result "1-0"]
[Round "03"]
[TimeControl "180+2"]
[Date "2023.03.14"]
[WhiteClock "0:00:29"]
[BlackClock "0:00:35"]

1. d4 {[%clk 0:03:00]}  Nf6 {[%clk 0:02:59]} 2. Bg5 {[%clk 0:03:01]}  d5 {[%clk 0:02:59]} 3. Nf3 {[%clk 0:03:01]}  Bf5 {[%clk 0:02:58]} 4. e3 {[%clk 0:02:58]}  Nbd7 {[%clk 0:02:57]} 5. Bd3 {[%clk 0:02:57]}  Bg6 {[%clk 0:02:43]} 6. c3 {[%clk 0:02:42]}  e6 {[%clk 0:02:40]} 7. O-O {[%clk 0:02:40]}  Bd6 {[%clk 0:02:40]} 8. h3 {[%clk 0:02:35]}  c5 {[%clk 0:02:39]} 9. Re1 {[%clk 0:02:26]}  O-O {[%clk 0:02:38]} 10. Bxg6 {[%clk 0:02:25]}  hxg6 {[%clk 0:02:37]} 11. Nbd2 {[%clk 0:02:26]}  Qb6 {[%clk 0:02:26]} 12. Qb3 {[%clk 0:02:25]}  Qa6 {[%clk 0:02:19]} 13. c4 {[%clk 0:02:12]}  cxd4 {[%clk 0:02:10]} 14. Nxd4 {[%clk 0:02:08]}  Nc5 {[%clk 0:02:05]} 15. Qb5 {[%clk 0:02:07]}  Qxb5 {[%clk 0:01:55]} 16. Nxb5 {[%clk 0:02:08]}  Be5 {[%clk 0:01:55]} 17. Reb1 {[%clk 0:01:36]}  Nfe4 {[%clk 0:01:51]} 18. Nxe4 {[%clk 0:01:33]}  Nxe4 {[%clk 0:01:52]} 19. Bf4 {[%clk 0:01:30]}  Bxf4 {[%clk 0:01:52]} 20. exf4 {[%clk 0:01:31]}  dxc4 {[%clk 0:01:53]} 21. Re1 {[%clk 0:01:28]}  Nf6 {[%clk 0:01:29]} 22. Rac1 {[%clk 0:01:23]}  a6 {[%clk 0:01:29]} 23. Nc7 {[%clk 0:01:11]}  Rac8 {[%clk 0:01:28]} 24. Rxc4 {[%clk 0:01:11]}  Rfd8 {[%clk 0:01:28]} 25. Rec1 {[%clk 0:01:02]}  Rd2 {[%clk 0:01:27]} 26. Rb4 {[%clk 0:00:49]}  b5 {[%clk 0:01:26]} 27. Rc3 {[%clk 0:00:46]}  Rd6 {[%clk 0:01:03]} 28. Nxb5 {[%clk 0:00:46]}  Rxc3 {[%clk 0:00:56]} 29. Nxd6 {[%clk 0:00:45]}  Rc1+ {[%clk 0:00:55]} 30. Kh2 {[%clk 0:00:45]}  Nd5 {[%clk 0:00:47]} 31. Rb8+ {[%clk 0:00:45]}  Kh7 {[%clk 0:00:47]} 32. Nxf7 {[%clk 0:00:45]}  Nxf4 {[%clk 0:00:46]} 33. Ng5+ {[%clk 0:00:45]}  Kh6 {[%clk 0:00:46]} 34. h4 {[%clk 0:00:45]}  Kh5 {[%clk 0:00:40]} 35. g3 {[%clk 0:00:34]}  Nd3 {[%clk 0:00:36]} 36. f3 {[%clk 0:00:29]}  Rc2+ {[%clk 0:00:35]} 37. Kg1 {[%clk 0:00:29]} 1-0


[Site "https://www.chess.com"]

[Event "Titled Tuesday Blitz March 14 Late 2023"]
[White "Di Nicolantonio, Lucas"]
[Black "Leonte, Sebastian-Marian"]
[WhiteFideId "680460"]
[BlackFideId "1268767"]
[WhiteElo "2358"]
[BlackElo "2344"]
[Result "1-0"]
[Round "03"]
[TimeControl "180+2"]
[Date "2023.03.14"]
[WhiteClock "0:00:49"]
[BlackClock "0:00:02"]

1. Nf3 {[%clk 0:03:00]}  Nf6 {[%clk 0:02:59]} 2. c4 {[%clk 0:03:01]}  e6 {[%clk 0:02:53]} 3. Nc3 {[%clk 0:03:00]}  d5 {[%clk 0:02:49]} 4. e3 {[%clk 0:02:59]}  Be7 {[%clk 0:02:41]} 5. b3 {[%clk 0:02:58]}  O-O {[%clk 0:02:40]} 6. Bb2 {[%clk 0:02:59]}  b6 {[%clk 0:02:40]} 7. cxd5 {[%clk 0:02:58]}  Nxd5 {[%clk 0:02:34]} 8. Qc2 {[%clk 0:02:59]}  Bb7 {[%clk 0:02:28]} 9. h4 {[%clk 0:02:58]}  Nb4 {[%clk 0:02:18]} 10. Qb1 {[%clk 0:02:54]}  Ba6 {[%clk 0:02:04]} 11. Ng5 {[%clk 0:02:49]}  Bd3 {[%clk 0:01:58]} 12. Bxd3 {[%clk 0:02:31]}  Qxd3 {[%clk 0:01:57]} 13. a3 {[%clk 0:02:23]}  Qxb1+ {[%clk 0:01:44]} 14. Rxb1 {[%clk 0:02:24]}  Nd3+ {[%clk 0:01:44]} 15. Ke2 {[%clk 0:02:24]}  Nxb2 {[%clk 0:01:43]} 16. Rxb2 {[%clk 0:02:25]}  Bxa3 {[%clk 0:01:37]} 17. Rc2 {[%clk 0:02:21]}  Bd6 {[%clk 0:01:29]} 18. Nb5 {[%clk 0:02:19]}  Na6 {[%clk 0:01:28]} 19. Ra1 {[%clk 0:02:11]}  Nb4 {[%clk 0:01:27]} 20. Rc4 {[%clk 0:02:11]}  Nd5 {[%clk 0:01:19]} 21. Ne4 {[%clk 0:02:02]}  a6 {[%clk 0:01:03]} 22. Nbxd6 {[%clk 0:02:01]}  cxd6 {[%clk 0:00:59]} 23. Nxd6 {[%clk 0:02:00]}  Rfd8 {[%clk 0:00:51]} 24. Rc6 {[%clk 0:01:52]}  Kf8 {[%clk 0:00:33]} 25. Nc4 {[%clk 0:01:51]}  b5 {[%clk 0:00:30]} 26. Nb6 {[%clk 0:01:46]}  Nb4 {[%clk 0:00:14]} 27. Nxa8 {[%clk 0:01:41]}  Nxc6 {[%clk 0:00:14]} 28. Rxa6 {[%clk 0:01:42]}  Nb4 {[%clk 0:00:12]} 29. Ra7 {[%clk 0:01:41]}  Nd3 {[%clk 0:00:09]} 30. Nb6 {[%clk 0:01:34]}  Nc1+ {[%clk 0:00:08]} 31. Kf3 {[%clk 0:01:28]}  Nxb3 {[%clk 0:00:09]} 32. d4 {[%clk 0:01:27]}  Nd2+ {[%clk 0:00:09]} 33. Ke2 {[%clk 0:01:26]}  Ne4 {[%clk 0:00:09]} 34. Nd7+ {[%clk 0:01:21]}  Ke8 {[%clk 0:00:09]} 35. Ne5 {[%clk 0:01:22]}  f6 {[%clk 0:00:07]} 36. Nc6 {[%clk 0:01:22]}  Rd7 {[%clk 0:00:06]} 37. Ra8+ {[%clk 0:01:22]}  Kf7 {[%clk 0:00:06]} 38. Rb8 {[%clk 0:01:21]}  Rc7 {[%clk 0:00:05]} 39. Nb4 {[%clk 0:01:16]}  Rc4 {[%clk 0:00:05]} 40. Rxb5 {[%clk 0:01:11]}  Nc3+ {[%clk 0:00:04]} 41. Kd3 {[%clk 0:01:12]}  Nxb5 {[%clk 0:00:04]} 42. Kxc4 {[%clk 0:01:12]}  Nd6+ {[%clk 0:00:05]} 43. Kd3 {[%clk 0:01:12]}  Nf5 {[%clk 0:00:05]} 44. g3 {[%clk 0:01:11]}  g5 {[%clk 0:00:06]} 45. hxg5 {[%clk 0:01:10]}  fxg5 {[%clk 0:00:07]} 46. e4 {[%clk 0:01:09]}  Ne7 {[%clk 0:00:05]} 47. Kc4 {[%clk 0:01:07]}  h5 {[%clk 0:00:06]} 48. Nd3 {[%clk 0:01:06]}  h4 {[%clk 0:00:06]} 49. Ne5+ {[%clk 0:01:07]}  Kf6 {[%clk 0:00:04]} 50. Ng4+ {[%clk 0:01:07]}  Kg6 {[%clk 0:00:04]} 51. Kc5 {[%clk 0:01:03]}  h3 {[%clk 0:00:03]} 52. Kd6 {[%clk 0:01:03]}  Kh5 {[%clk 0:00:03]} 53. f3 {[%clk 0:00:57]}  Ng8 {[%clk 0:00:03]} 54. Kxe6 {[%clk 0:00:57]}  Nh6 {[%clk 0:00:03]} 55. Nh2 {[%clk 0:00:55]}  g4 {[%clk 0:00:04]} 56. f4 {[%clk 0:00:54]}  Ng8 {[%clk 0:00:02]} 57. d5 {[%clk 0:00:54]}  Kg6 {[%clk 0:00:02]} 58. d6 {[%clk 0:00:54]}  Nf6 {[%clk 0:00:02]} 59. d7 {[%clk 0:00:50]}  Nxe4 {[%clk 0:00:02]} 60. d8=Q {[%clk 0:00:49]} 1-0


[Site "https://www.chess.com"]

[Event "Titled Tuesday Blitz March 14 Late 2023"]
[White "DeyanKostov"]
[Black "Romkachess"]
[WhiteElo "2319"]
[BlackElo "2573"]
[Result "1/2-1/2"]
[Round "03"]
[TimeControl "180+2"]
[Date "2023.03.14"]
[WhiteClock "0:02:04"]
[BlackClock "0:01:00"]

1. d4 {[%clk 0:03:00]}  d5 {[%clk 0:02:56]} 2. c4 {[%clk 0:03:00]}  e6 {[%clk 0:02:56]} 3. Nc3 {[%clk 0:03:00]}  Nf6 {[%clk 0:02:56]} 4. cxd5 {[%clk 0:03:01]}  exd5 {[%clk 0:02:56]} 5. Bg5 {[%clk 0:03:01]}  c6 {[%clk 0:02:57]} 6. e3 {[%clk 0:03:02]}  Nbd7 {[%clk 0:02:56]} 7. Bd3 {[%clk 0:03:01]}  Be7 {[%clk 0:02:55]} 8. Nf3 {[%clk 0:03:02]}  O-O {[%clk 0:02:56]} 9. Qc2 {[%clk 0:03:02]}  Re8 {[%clk 0:02:54]} 10. O-O {[%clk 0:02:57]}  h6 {[%clk 0:02:53]} 11. Bf4 {[%clk 0:02:57]}  Nf8 {[%clk 0:02:47]} 12. h3 {[%clk 0:02:55]}  Ne6 {[%clk 0:02:43]} 13. Bh2 {[%clk 0:02:55]}  c5 {[%clk 0:02:36]} 14. dxc5 {[%clk 0:02:52]}  Nxc5 {[%clk 0:02:35]} 15. Bf5 {[%clk 0:02:52]}  Bxf5 {[%clk 0:02:29]} 16. Qxf5 {[%clk 0:02:52]}  Nce4 {[%clk 0:02:30]} 17. Nxe4 {[%clk 0:02:44]}  dxe4 {[%clk 0:02:31]} 18. Nd4 {[%clk 0:02:41]}  Bd6 {[%clk 0:02:23]} 19. Bxd6 {[%clk 0:02:39]}  Qxd6 {[%clk 0:02:24]} 20. Rfd1 {[%clk 0:02:34]}  Qb6 {[%clk 0:02:21]} 21. Qb5 {[%clk 0:02:34]}  Rac8 {[%clk 0:02:03]} 22. Qxb6 {[%clk 0:02:33]}  axb6 {[%clk 0:02:04]} 23. Rac1 {[%clk 0:02:33]}  Red8 {[%clk 0:01:53]} 24. a3 {[%clk 0:02:33]}  Kf8 {[%clk 0:01:51]} 25. Kf1 {[%clk 0:02:33]}  g6 {[%clk 0:01:50]} 26. Ke2 {[%clk 0:02:33]}  Ke7 {[%clk 0:01:50]} 27. Kd2 {[%clk 0:02:32]}  Nd5 {[%clk 0:01:43]} 28. Rxc8 {[%clk 0:02:31]}  Rxc8 {[%clk 0:01:44]} 29. Rc1 {[%clk 0:02:31]}  Rxc1 {[%clk 0:01:44]} 30. Kxc1 {[%clk 0:02:32]}  Nc7 {[%clk 0:01:38]} 31. Kc2 {[%clk 0:02:31]}  Kd6 {[%clk 0:01:38]} 32. Kc3 {[%clk 0:02:30]}  Kc5 {[%clk 0:01:29]} 33. b4+ {[%clk 0:02:28]}  Kd5 {[%clk 0:01:29]} 34. a4 {[%clk 0:02:28]}  f5 {[%clk 0:01:27]} 35. Nc2 {[%clk 0:02:12]}  b5 {[%clk 0:01:23]} 36. a5 {[%clk 0:02:10]}  Ne6 {[%clk 0:01:18]} 37. Na3 {[%clk 0:02:05]}  Nc7 {[%clk 0:01:11]} 38. Nc2 {[%clk 0:02:06]}  Ne6 {[%clk 0:01:11]} 39. Na3 {[%clk 0:02:04]}  Nc7 {[%clk 0:01:00]} 40. Nc2 {[%clk 0:02:04]} 1/2-1/2


[Site "https://www.chess.com"]